[Event "Live Chess"]
[Site "Chess.com"]
[Date "2024.06.02"]
[Round "-"]
[White "booktrunk"]
[Black "Frankie_Badacsonyi"]
[Result "0-1"]
[WhiteElo "1496"]
[BlackElo "2411"]
[TimeControl "300"]
[EndTime "17:55:08 PDT"]
[Termination "Frankie_Badacsonyi won by resignation"]

1. d4 {[%clk 0:04:54.1]} 1... g6 {[%clk 0:04:58.3]} 2. Nc3 {[%clk 0:04:51.3]}
2... Bg7 {[%clk 0:04:56.6]} 3. Bf4 {[%clk 0:04:46]} 3... c6 {[%clk 0:04:55.1]}
4. e3 {[%clk 0:04:43]} 4... d5 {[%clk 0:04:54.4]} 5. h3 {[%clk 0:04:37.6]} 5...
Nf6 {[%clk 0:04:53]} 6. Nf3 {[%clk 0:04:36.2]} 6... O-O {[%clk 0:04:47]} 7. Bd3
{[%clk 0:04:33.9]} 7... c5 {[%clk 0:04:30.8]} 8. dxc5 {[%clk 0:04:30.4]} 8...
Qa5 {[%clk 0:04:22.8]} 9. Qd2 {[%clk 0:04:25.2]} 9... Qxc5 {[%clk 0:04:12.3]}
10. Na4 {[%clk 0:04:16.5]} 10... Qc6 {[%clk 0:04:08.5]} 11. b3 {[%clk
0:04:11.5]} 11... a6 {[%clk 0:03:46]} 12. O-O {[%clk 0:04:05.5]} 12... b5 {[%clk
0:03:37]} 13. Ne5 {[%clk 0:03:44.6]} 13... Qb7 {[%clk 0:03:28.5]} 14. Nc5 {[%clk
0:03:41.2]} 14... Qa7 {[%clk 0:03:26.3]} 15. b4 {[%clk 0:03:38.7]} 15... Nbd7
{[%clk 0:03:17]} 16. Nexd7 {[%clk 0:03:34.2]} 16... Nxd7 {[%clk 0:03:16.9]} 17.
Nxd7 {[%clk 0:03:29.3]} 17... Bxd7 {[%clk 0:03:16.8]} 18. Rab1 {[%clk
0:03:25.4]} 18... Rac8 {[%clk 0:03:14.8]} 19. Rfc1 {[%clk 0:03:14.4]} 19... Bc3
{[%clk 0:02:50.8]} 20. Qd1 {[%clk 0:03:09.7]} 20... Rfd8 {[%clk 0:02:46.9]} 21.
a3 {[%clk 0:03:07.9]} 21... Bf6 {[%clk 0:02:31.5]} 22. Qe2 {[%clk 0:02:54.7]}
22... e5 {[%clk 0:02:26.8]} 23. Bxg6 {[%clk 0:02:32.2]} 23... hxg6 {[%clk
0:02:13.1]} 24. Bg3 {[%clk 0:02:26.2]} 24... Be6 {[%clk 0:02:09.6]} 25. Kh1
{[%clk 0:02:17.4]} 25... Rc4 {[%clk 0:02:08.1]} 26. Qf3 {[%clk 0:02:12.3]} 26...
Bg7 {[%clk 0:02:03.1]} 27. Rb3 {[%clk 0:02:03.1]} 27... Rdc8 {[%clk 0:02:01.4]}
28. c3 {[%clk 0:01:59]} 28... d4 {[%clk 0:01:54.2]} 29. exd4 {[%clk 0:01:57.4]}
29... exd4 {[%clk 0:01:51.7]} 30. Qe2 {[%clk 0:01:50.8]} 30... dxc3 {[%clk
0:01:46]} 31. Be5 {[%clk 0:01:48]} 31... Bxe5 {[%clk 0:01:43.3]} 32. Qxe5 {[%clk
0:01:47]} 32... Qd4 {[%clk 0:01:42.2]} 33. Qg3 {[%clk 0:01:36.5]} 33... c2
{[%clk 0:01:38]} 34. Rd3 {[%clk 0:01:33.7]} 34... Qb2 {[%clk 0:01:34.6]} 35. Qg5
{[%clk 0:01:28.6]} 35... Rd4 {[%clk 0:01:24.1]} 36. Rxd4 {[%clk 0:01:18.4]}
36... Qxd4 {[%clk 0:01:24]} 37. Qe7 {[%clk 0:01:09.6]} 37... Qd1+ {[%clk
0:01:19.6]} 38. Rxd1 {[%clk 0:01:08]} 38... cxd1=Q+ {[%clk 0:01:17.4]} 39. Kh2
{[%clk 0:01:07.9]} 39... Rd8 {[%clk 0:01:15.7]} 40. Qf6 {[%clk 0:01:05.9]} 40...
Qd6+ {[%clk 0:01:13]} 41. g3 {[%clk 0:01:01.5]} 41... Qd4 {[%clk 0:01:08.2]} 42.
Qe7 {[%clk 0:00:57]} 42... Qxf2+ {[%clk 0:01:05.9]} 0-1

[Event "Live Chess"]
[Site "Chess.com"]
[Date "2024.06.02"]
[Round "-"]
[White "Harry_Li"]
[Black "Tushinskiy"]
[Result "0-1"]
[WhiteElo "2088"]
[BlackElo "2249"]
[TimeControl "300"]
[EndTime "17:55:12 PDT"]
[Termination "Tushinskiy won by resignation"]

1. d4 {[%clk 0:04:57]} 1... d5 {[%clk 0:04:59.1]} 2. c4 {[%clk 0:04:56.3]} 2...
c6 {[%clk 0:04:59]} 3. Nf3 {[%clk 0:04:55]} 3... Nf6 {[%clk 0:04:58.9]} 4. Nc3
{[%clk 0:04:54.7]} 4... e6 {[%clk 0:04:58.2]} 5. e3 {[%clk 0:04:52.7]} 5... Bd6
{[%clk 0:04:57.2]} 6. Bd3 {[%clk 0:04:50.8]} 6... Nbd7 {[%clk 0:04:51.5]} 7. e4
{[%clk 0:04:42.7]} 7... dxe4 {[%clk 0:04:49.1]} 8. Nxe4 {[%clk 0:04:42.6]} 8...
Nxe4 {[%clk 0:04:48.7]} 9. Bxe4 {[%clk 0:04:42.5]} 9... Nf6 {[%clk 0:04:46.7]}
10. Bc2 {[%clk 0:04:42]} 10... Qe7 {[%clk 0:04:45.8]} 11. O-O {[%clk 0:04:40.9]}
11... b6 {[%clk 0:04:43.3]} 12. Ne5 {[%clk 0:04:34.6]} 12... Bb7 {[%clk
0:04:41.1]} 13. Bf4 {[%clk 0:03:55.1]} 13... O-O-O {[%clk 0:04:39]} 14. Qe2
{[%clk 0:03:42.2]} 14... h6 {[%clk 0:04:35.5]} 15. a4 {[%clk 0:03:29]} 15... Bc7
{[%clk 0:04:33.3]} 16. Rfd1 {[%clk 0:03:24.9]} 16... g5 {[%clk 0:04:30.5]} 17.
Be3 {[%clk 0:03:16]} 17... Nd7 {[%clk 0:04:25.9]} 18. a5 {[%clk 0:02:43.1]}
18... Nxe5 {[%clk 0:04:09.9]} 19. axb6 {[%clk 0:02:35.7]} 19... axb6 {[%clk
0:04:08.1]} 20. dxe5 {[%clk 0:02:34.6]} 20... Rxd1+ {[%clk 0:04:08]} 21. Bxd1
{[%clk 0:02:22.1]} 21... Rd8 {[%clk 0:04:02.1]} 22. Bc2 {[%clk 0:02:01.2]} 22...
Qb4 {[%clk 0:04:00.1]} 23. b3 {[%clk 0:01:46.6]} 23... Qc3 {[%clk 0:03:56]} 24.
Rb1 {[%clk 0:00:50.3]} 24... Qxe5 {[%clk 0:03:53.5]} 25. Qf3 {[%clk 0:00:45.4]}
25... Qxh2+ {[%clk 0:03:43.5]} 26. Kf1 {[%clk 0:00:44]} 26... f5 {[%clk
0:03:41.7]} 27. g3 {[%clk 0:00:28.4]} 27... c5 {[%clk 0:03:38.5]} 0-1

[Event "Live Chess"]
[Site "Chess.com"]
[Date "2024.06.02"]
[Round "-"]
[White "nigelst"]
[Black "oscalik"]
[Result "0-1"]
[WhiteElo "1729"]
[BlackElo "2284"]
[TimeControl "300"]
[EndTime "17:55:19 PDT"]
[Termination "oscalik won by resignation"]

1. e4 {[%clk 0:04:57.9]} 1... c5 {[%clk 0:04:52.2]} 2. Nf3 {[%clk 0:04:56.2]}
2... e6 {[%clk 0:04:50]} 3. c3 {[%clk 0:04:54.3]} 3... Nf6 {[%clk 0:04:43.9]} 4.
e5 {[%clk 0:04:50.9]} 4... Nd5 {[%clk 0:04:42.9]} 5. d4 {[%clk 0:04:50]} 5...
cxd4 {[%clk 0:04:41.5]} 6. cxd4 {[%clk 0:04:48.7]} 6... d6 {[%clk 0:04:39.7]} 7.
Nc3 {[%clk 0:04:47.4]} 7... Nxc3 {[%clk 0:04:38.1]} 8. bxc3 {[%clk 0:04:45.8]}
8... Qc7 {[%clk 0:04:37.5]} 9. Bd2 {[%clk 0:04:40.5]} 9... Nd7 {[%clk
0:04:35.3]} 10. Bd3 {[%clk 0:04:37.9]} 10... dxe5 {[%clk 0:04:27.5]} 11. O-O
{[%clk 0:04:29]} 11... exd4 {[%clk 0:04:02.7]} 12. cxd4 {[%clk 0:04:26.4]} 12...
Be7 {[%clk 0:04:02.3]} 13. Rc1 {[%clk 0:04:24.5]} 13... Qd6 {[%clk 0:03:43]} 14.
Qc2 {[%clk 0:03:51.7]} 14... Nf6 {[%clk 0:03:13.3]} 15. Qb3 {[%clk 0:03:12.2]}
15... O-O {[%clk 0:03:03.5]} 16. Rc2 {[%clk 0:03:04.2]} 16... Nd5 {[%clk
0:02:36]} 17. Rfc1 {[%clk 0:03:00.8]} 17... Nf4 {[%clk 0:02:17.4]} 18. Bf1
{[%clk 0:02:53]} 18... Rd8 {[%clk 0:01:49.5]} 19. Qe3 {[%clk 0:02:50.5]} 19...
Nd5 {[%clk 0:01:45.3]} 20. Qb3 {[%clk 0:02:43.4]} 20... b6 {[%clk 0:01:41.2]}
21. Rc6 {[%clk 0:02:38.4]} 21... Qa3 {[%clk 0:01:29.3]} 22. Qxa3 {[%clk
0:02:24.6]} 22... Bxa3 {[%clk 0:01:27.6]} 23. R1c2 {[%clk 0:02:23]} 23... Bb7
{[%clk 0:01:25.6]} 24. R6c4 {[%clk 0:02:19.2]} 24... Ba6 {[%clk 0:01:23.2]} 25.
Ra4 {[%clk 0:02:15]} 25... Bxf1 {[%clk 0:01:23.1]} 26. Rxa3 {[%clk 0:02:13.7]}
26... Be2 {[%clk 0:01:14.5]} 27. Ne5 {[%clk 0:02:07.9]} 27... Rac8 {[%clk
0:01:09.5]} 28. Rxc8 {[%clk 0:01:57.7]} 28... Rxc8 {[%clk 0:01:09.4]} 29. h3
{[%clk 0:01:53.1]} 29... f6 {[%clk 0:01:04.8]} 30. Ng4 {[%clk 0:01:44]} 30... a5
{[%clk 0:01:03.3]} 31. Ne3 {[%clk 0:01:39.6]} 31... Kf7 {[%clk 0:00:52.4]} 32.
Rb3 {[%clk 0:01:29.8]} 32... a4 {[%clk 0:00:46.9]} 33. Rb5 {[%clk 0:01:24.1]}
33... Bxb5 {[%clk 0:00:44.6]} 0-1

[Event "Live Chess"]
[Site "Chess.com"]
[Date "2024.06.02"]
[Round "-"]
[White "Thebigsqueeze"]
[Black "WelshTiger"]
[Result "1/2-1/2"]
[WhiteElo "2276"]
[BlackElo "2451"]
[TimeControl "300"]
[EndTime "17:55:19 PDT"]
[Termination "Game drawn by repetition"]

1. d4 {[%clk 0:04:57.9]} 1... d5 {[%clk 0:04:58.4]} 2. c4 {[%clk 0:04:56.3]}
2... dxc4 {[%clk 0:04:57.9]} 3. Nf3 {[%clk 0:04:54.6]} 3... Nf6 {[%clk
0:04:56.5]} 4. g3 {[%clk 0:04:53.8]} 4... c5 {[%clk 0:04:53]} 5. Qa4+ {[%clk
0:04:51.8]} 5... Nc6 {[%clk 0:04:49.6]} 6. dxc5 {[%clk 0:04:51.2]} 6... e6
{[%clk 0:04:36.1]} 7. Qxc4 {[%clk 0:04:49.4]} 7... Qa5+ {[%clk 0:04:34]} 8. Nc3
{[%clk 0:04:45.4]} 8... Qxc5 {[%clk 0:04:32]} 9. Qa4 {[%clk 0:04:18.6]} 9... Bd7
{[%clk 0:04:26.4]} 10. Be3 {[%clk 0:04:16]} 10... Qb4 {[%clk 0:04:25.8]} 11.
Qxb4 {[%clk 0:04:10]} 11... Bxb4 {[%clk 0:04:22.8]} 12. Bg2 {[%clk 0:04:05.4]}
12... Ne4 {[%clk 0:04:15]} 13. Bd2 {[%clk 0:03:58.5]} 13... Nxd2 {[%clk
0:04:12.2]} 14. Nxd2 {[%clk 0:03:56.7]} 14... Nd4 {[%clk 0:03:54.5]} 15. Rc1
{[%clk 0:03:49]} 15... Bc6 {[%clk 0:03:53.3]} 16. Bxc6+ {[%clk 0:03:43.6]} 16...
Nxc6 {[%clk 0:03:49.7]} 17. a3 {[%clk 0:03:39.7]} 17... Be7 {[%clk 0:03:45.8]}
18. O-O {[%clk 0:03:34.4]} 18... O-O-O {[%clk 0:03:42.2]} 19. Rfd1 {[%clk
0:03:32.9]} 19... Kb8 {[%clk 0:03:40.4]} 20. e3 {[%clk 0:03:30.7]} 20... Ne5
{[%clk 0:03:38.5]} 21. Kf1 {[%clk 0:03:09.9]} 21... Nd3 {[%clk 0:03:28.4]} 22.
Rc2 {[%clk 0:03:06.3]} 22... Nc5 {[%clk 0:03:19.4]} 23. Ke2 {[%clk 0:03:00.7]}
23... Rd7 {[%clk 0:03:03.5]} 24. Nde4 {[%clk 0:02:56.6]} 24... Rxd1 {[%clk
0:03:01.1]} 25. Kxd1 {[%clk 0:02:54.7]} 25... Rd8+ {[%clk 0:02:58]} 26. Ke2
{[%clk 0:02:53.3]} 26... Nb3 {[%clk 0:02:51.7]} 27. Nd2 {[%clk 0:02:46.8]} 27...
Nxd2 {[%clk 0:02:30.9]} 28. Rxd2 {[%clk 0:02:45.5]} 28... Rxd2+ {[%clk
0:02:28.5]} 29. Kxd2 {[%clk 0:02:44.1]} 29... Kc7 {[%clk 0:02:28.1]} 30. Kd3
{[%clk 0:02:43.2]} 30... Kc6 {[%clk 0:02:26.9]} 31. Kc4 {[%clk 0:02:40.8]} 31...
a6 {[%clk 0:02:25.2]} 32. a4 {[%clk 0:02:39.9]} 32... Bf6 {[%clk 0:02:24]} 33.
b4 {[%clk 0:02:20.2]} 33... Bxc3 {[%clk 0:02:17.8]} 34. Kxc3 {[%clk 0:02:18.9]}
34... Kd5 {[%clk 0:02:17.5]} 35. Kd3 {[%clk 0:02:16.6]} 35... f5 {[%clk
0:02:16.7]} 36. f3 {[%clk 0:02:14.7]} 36... g5 {[%clk 0:02:07.6]} 37. h4 {[%clk
0:02:12.4]} 37... h6 {[%clk 0:01:57.9]} 38. e4+ {[%clk 0:01:29.9]} 38... fxe4+
{[%clk 0:01:57.1]} 39. fxe4+ {[%clk 0:01:29]} 39... Ke5 {[%clk 0:01:56]} 40. Ke3
{[%clk 0:01:28.5]} 40... b6 {[%clk 0:01:46.1]} 41. hxg5 {[%clk 0:01:22.2]} 41...
hxg5 {[%clk 0:01:44.9]} 42. g4 {[%clk 0:01:21.5]} 42... b5 {[%clk 0:01:36.3]}
43. a5 {[%clk 0:01:20.5]} 43... Kd6 {[%clk 0:01:34.6]} 44. Kd4 {[%clk
0:01:20.1]} 44... e5+ {[%clk 0:01:34]} 45. Kd3 {[%clk 0:01:19]} 45... Ke6 {[%clk
0:01:33.3]} 46. Ke3 {[%clk 0:01:18]} 46... Kd6 {[%clk 0:01:32.9]} 47. Kd3 {[%clk
0:01:16.8]} 47... Ke6 {[%clk 0:01:32.6]} 48. Ke3 {[%clk 0:01:16.4]} 48... Kd6
{[%clk 0:01:32.1]} 49. Kd3 {[%clk 0:01:16]} 1/2-1/2

[Event "Live Chess"]
[Site "Chess.com"]
[Date "2024.06.02"]
[Round "-"]
[White "Cruiseylee78"]
[Black "PughmanChess"]
[Result "0-1"]
[WhiteElo "1673"]
[BlackElo "1403"]
[TimeControl "300"]
[EndTime "17:55:25 PDT"]
[Termination "PughmanChess won by resignation"]

1. d4 {[%clk 0:04:58]} 1... f5 {[%clk 0:04:30.8]} 2. Bf4 {[%clk 0:04:55.7]} 2...
e6 {[%clk 0:04:28.9]} 3. e3 {[%clk 0:04:51.8]} 3... Nf6 {[%clk 0:04:28.2]} 4.
Nf3 {[%clk 0:04:49.8]} 4... Be7 {[%clk 0:04:27.5]} 5. Bd3 {[%clk 0:04:48.9]}
5... d6 {[%clk 0:04:25.3]} 6. Nbd2 {[%clk 0:04:47.5]} 6... O-O {[%clk 0:04:24]}
7. c3 {[%clk 0:04:45.6]} 7... b6 {[%clk 0:04:20.9]} 8. Qc2 {[%clk 0:04:44.4]}
8... Bb7 {[%clk 0:04:19.4]} 9. Rg1 {[%clk 0:04:43.7]} 9... Kh8 {[%clk
0:04:13.9]} 10. h3 {[%clk 0:04:41.9]} 10... Nbd7 {[%clk 0:04:06]} 11. g4 {[%clk
0:04:40.7]} 11... e5 {[%clk 0:04:04.3]} 12. dxe5 {[%clk 0:04:29.4]} 12... dxe5
{[%clk 0:04:03.1]} 13. Nxe5 {[%clk 0:04:25.2]} 13... Nxe5 {[%clk 0:03:57.1]} 14.
Bxe5 {[%clk 0:04:25.1]} 14... fxg4 {[%clk 0:03:53.7]} 15. hxg4 {[%clk
0:04:22.8]} 15... Nd7 {[%clk 0:03:35.2]} 16. Bd4 {[%clk 0:04:16.6]} 16... Bh4
{[%clk 0:03:32.7]} 17. Rg2 {[%clk 0:04:03.1]} 17... Nc5 {[%clk 0:03:31.1]} 18.
Rh2 {[%clk 0:03:54]} 18... Nxd3+ {[%clk 0:03:17.6]} 19. Qxd3 {[%clk 0:03:50.8]}
19... a5 {[%clk 0:03:12.9]} 20. Qc2 {[%clk 0:03:48.9]} 20... Ba6 {[%clk
0:03:10.8]} 21. Ne4 {[%clk 0:03:24.4]} 21... c5 {[%clk 0:02:51.6]} 22. Be5
{[%clk 0:03:15.2]} 22... Bb7 {[%clk 0:02:45.3]} 23. Nd6 {[%clk 0:03:11]} 23...
Bf3 {[%clk 0:02:34.7]} 24. Qb3 {[%clk 0:02:37]} 24... Ra7 {[%clk 0:02:22.1]} 25.
Nf5 {[%clk 0:02:30.7]} 25... Rxf5 {[%clk 0:01:58]} 26. gxf5 {[%clk 0:02:22.3]}
26... Qg5 {[%clk 0:01:55.7]} 27. Rxh4 {[%clk 0:02:02.8]} 27... Qxh4 {[%clk
0:01:47.5]} 28. Qf7 {[%clk 0:01:53]} 28... Rxf7 {[%clk 0:01:45.2]} 0-1

[Event "Live Chess"]
[Site "Chess.com"]
[Date "2024.06.02"]
[Round "-"]
[White "educatedlad"]
[Black "Dhaydon19"]
[Result "0-1"]
[WhiteElo "1736"]
[BlackElo "2680"]
[TimeControl "300"]
[EndTime "17:55:43 PDT"]
[Termination "Dhaydon19 won by resignation"]

1. d4 {[%clk 0:04:58.7]} 1... e6 {[%clk 0:04:59.3]} 2. e4 {[%clk 0:04:54.9]}
2... d5 {[%clk 0:04:58.7]} 3. e5 {[%clk 0:04:53.9]} 3... c5 {[%clk 0:04:56.4]}
4. c3 {[%clk 0:04:53.5]} 4... Nc6 {[%clk 0:04:55]} 5. Nf3 {[%clk 0:04:53.4]}
5... Be7 {[%clk 0:04:53.8]} 6. Be2 {[%clk 0:04:50.6]} 6... Bf8 {[%clk
0:04:53.1]} 7. O-O {[%clk 0:04:48.1]} 7... Nge7 {[%clk 0:04:52.7]} 8. Bg5 {[%clk
0:04:45.3]} 8... Qc7 {[%clk 0:04:51.1]} 9. Be3 {[%clk 0:04:41.7]} 9... Nf5
{[%clk 0:04:49.6]} 10. Bd3 {[%clk 0:04:36.1]} 10... Nxe3 {[%clk 0:04:47.6]} 11.
fxe3 {[%clk 0:04:35]} 11... Be7 {[%clk 0:04:47.2]} 12. Na3 {[%clk 0:04:32.8]}
12... a6 {[%clk 0:04:45.8]} 13. Rc1 {[%clk 0:04:30.8]} 13... Bd7 {[%clk
0:04:44.4]} 14. h4 {[%clk 0:04:23.4]} 14... h6 {[%clk 0:04:41]} 15. dxc5 {[%clk
0:04:17.1]} 15... Nxe5 {[%clk 0:04:36.4]} 16. Nxe5 {[%clk 0:04:15.8]} 16... Qxe5
{[%clk 0:04:33.2]} 17. Qg4 {[%clk 0:04:13.7]} 17... Bxc5 {[%clk 0:04:27.9]} 18.
Kh1 {[%clk 0:04:10.3]} 18... g5 {[%clk 0:04:14.4]} 19. Nc2 {[%clk 0:03:58.8]}
19... gxh4 {[%clk 0:04:10]} 20. Qxh4 {[%clk 0:03:56]} 20... Qg5 {[%clk 0:04:09]}
21. Qf2 {[%clk 0:03:51.1]} 21... f5 {[%clk 0:03:43.4]} 22. Nd4 {[%clk
0:03:46.5]} 22... Bd6 {[%clk 0:03:41.1]} 23. Nf3 {[%clk 0:03:36.6]} 23... Qh5+
{[%clk 0:03:38.4]} 24. Kg1 {[%clk 0:03:35.6]} 24... Rg8 {[%clk 0:03:37.1]} 25.
Be2 {[%clk 0:03:32.2]} 25... O-O-O {[%clk 0:03:33.8]} 26. c4 {[%clk 0:03:22.7]}
26... dxc4 {[%clk 0:03:29.2]} 27. Rxc4+ {[%clk 0:03:20.9]} 27... Kb8 {[%clk
0:03:28.2]} 28. Rfc1 {[%clk 0:03:16.4]} 28... Rc8 {[%clk 0:03:23.7]} 29. Rxc8+
{[%clk 0:03:14.1]} 29... Rxc8 {[%clk 0:03:22.4]} 30. Rxc8+ {[%clk 0:03:12]}
30... Bxc8 {[%clk 0:03:20.9]} 31. Nh4 {[%clk 0:03:01.9]} 31... Qg5 {[%clk
0:03:19.5]} 32. Nf3 {[%clk 0:03:00.1]} 32... Qg7 {[%clk 0:03:16.6]} 33. Bc4
{[%clk 0:02:42.9]} 33... Qc7 {[%clk 0:03:08.2]} 34. Bb3 {[%clk 0:02:39.2]} 34...
f4 {[%clk 0:03:06]} 35. exf4 {[%clk 0:02:37.4]} 35... Bc5 {[%clk 0:03:05]} 36.
Nd4 {[%clk 0:02:34.8]} 36... Qd6 {[%clk 0:03:04.5]} 37. Qd2 {[%clk 0:02:28.2]}
37... Bxd4+ {[%clk 0:02:58.8]} 38. Kh1 {[%clk 0:02:27.5]} 38... Qc5 {[%clk
0:02:56]} 0-1

[Event "Live Chess"]
[Site "Chess.com"]
[Date "2024.06.02"]
[Round "-"]
[White "lyricalschemes"]
[Black "NeilDruggan73"]
[Result "1-0"]
[WhiteElo "2282"]
[BlackElo "1770"]
[TimeControl "300"]
[EndTime "17:56:17 PDT"]
[Termination "lyricalschemes won by resignation"]

1. e4 {[%clk 0:04:58.5]} 1... d6 {[%clk 0:04:58.4]} 2. d4 {[%clk 0:04:57.3]}
2... Nf6 {[%clk 0:04:57.2]} 3. Nc3 {[%clk 0:04:56.6]} 3... g6 {[%clk 0:04:56.2]}
4. Bg5 {[%clk 0:04:55.7]} 4... Bg7 {[%clk 0:04:55.1]} 5. Qd2 {[%clk 0:04:54.6]}
5... h6 {[%clk 0:04:50.1]} 6. Be3 {[%clk 0:04:53]} 6... Ng4 {[%clk 0:04:46.6]}
7. Bf4 {[%clk 0:04:51.6]} 7... Nc6 {[%clk 0:04:41.4]} 8. h3 {[%clk 0:04:49.1]}
8... Nf6 {[%clk 0:04:36.6]} 9. Be3 {[%clk 0:04:48.2]} 9... e5 {[%clk 0:04:31.6]}
10. dxe5 {[%clk 0:04:45.3]} 10... Nxe5 {[%clk 0:04:25.3]} 11. f4 {[%clk
0:04:43.5]} 11... Nc6 {[%clk 0:04:24.1]} 12. Bd3 {[%clk 0:04:41.4]} 12... O-O
{[%clk 0:04:21.6]} 13. Nge2 {[%clk 0:04:38.2]} 13... Kh7 {[%clk 0:04:18.4]} 14.
O-O {[%clk 0:04:36.9]} 14... Re8 {[%clk 0:04:15.8]} 15. Ng3 {[%clk 0:04:33.8]}
15... Nb4 {[%clk 0:04:14.6]} 16. Bc4 {[%clk 0:04:30.7]} 16... Be6 {[%clk
0:04:08.6]} 17. Bxe6 {[%clk 0:04:27]} 17... fxe6 {[%clk 0:04:06.7]} 18. a3
{[%clk 0:04:23.4]} 18... Nc6 {[%clk 0:04:03.9]} 19. Qd3 {[%clk 0:04:22.4]} 19...
e5 {[%clk 0:04:01.9]} 20. Rad1 {[%clk 0:04:17.3]} 20... Qe7 {[%clk 0:03:54.4]}
21. f5 {[%clk 0:04:12.7]} 21... g5 {[%clk 0:03:51.3]} 22. Qe2 {[%clk 0:04:09.2]}
22... Qf7 {[%clk 0:03:47]} 23. Nd5 {[%clk 0:04:06]} 23... Nxd5 {[%clk
0:03:32.7]} 24. Rxd5 {[%clk 0:04:03.1]} 24... Ne7 {[%clk 0:03:32.2]} 25. f6
{[%clk 0:03:39.8]} 25... Bxf6 {[%clk 0:03:23]} 26. Nh5 {[%clk 0:03:36.8]} 26...
Ng8 {[%clk 0:03:22.2]} 27. Qg4 {[%clk 0:03:25.6]} 27... Rf8 {[%clk 0:02:53]} 28.
Rd2 {[%clk 0:03:20.4]} 28... Qg6 {[%clk 0:02:49.6]} 29. Rdf2 {[%clk 0:03:18.4]}
29... Be7 {[%clk 0:02:37.5]} 30. Ng3 {[%clk 0:03:01.7]} 30... Rxf2 {[%clk
0:02:34.9]} 31. Rxf2 {[%clk 0:02:59.7]} 31... b6 {[%clk 0:02:31.4]} 32. Qd7
{[%clk 0:02:54.7]} 32... c5 {[%clk 0:02:24.7]} 33. Nf5 {[%clk 0:02:51.7]} 33...
Rf8 {[%clk 0:02:02.8]} 34. Nxe7 {[%clk 0:02:44.4]} 34... Qg7 {[%clk 0:01:47]}
35. Rxf8 {[%clk 0:02:41.9]} 35... Nxe7 {[%clk 0:01:28.5]} 36. Ra8 {[%clk
0:02:30.9]} 36... Ng6 {[%clk 0:01:17.8]} 37. Rxa7 {[%clk 0:02:28.8]} 37... Qxd7
{[%clk 0:01:14.4]} 38. Rxd7+ {[%clk 0:02:24.5]} 38... Kg8 {[%clk 0:01:13.8]} 39.
Rxd6 {[%clk 0:02:23.5]} 39... Nf4 {[%clk 0:01:13.4]} 40. Bxf4 {[%clk 0:02:22.5]}
40... gxf4 {[%clk 0:01:12.4]} 41. Rxb6 {[%clk 0:02:22.4]} 1-0

[Event "Live Chess"]
[Site "Chess.com"]
[Date "2024.06.02"]
[Round "-"]
[White "ACM42"]
[Black "Queensandpawns"]
[Result "0-1"]
[WhiteElo "2171"]
[BlackElo "2298"]
[TimeControl "300"]
[EndTime "17:56:26 PDT"]
[Termination "Queensandpawns won by resignation"]

1. e4 {[%clk 0:04:58.6]} 1... e5 {[%clk 0:04:59.4]} 2. Nf3 {[%clk 0:04:57.6]}
2... Nf6 {[%clk 0:04:59.3]} 3. Nxe5 {[%clk 0:04:55.9]} 3... Nc6 {[%clk
0:04:59.2]} 4. Nxc6 {[%clk 0:04:53.1]} 4... dxc6 {[%clk 0:04:59.1]} 5. e5 {[%clk
0:04:51.6]} 5... Ne4 {[%clk 0:04:58.5]} 6. d3 {[%clk 0:04:49.5]} 6... Bc5 {[%clk
0:04:55.6]} 7. Qg4 {[%clk 0:03:49.3]} 7... Bxg4 {[%clk 0:04:53.1]} 8. f3 {[%clk
0:03:45.5]} 8... Qh4+ {[%clk 0:04:50.5]} 9. g3 {[%clk 0:03:42.7]} 9... Bf2+
{[%clk 0:04:45.2]} 10. Ke2 {[%clk 0:03:41.5]} 10... Nxg3+ {[%clk 0:04:42.5]} 11.
hxg3 {[%clk 0:03:40.4]} 11... Qxh1 {[%clk 0:04:41.8]} 12. Kxf2 {[%clk
0:03:40.3]} 12... Qxf3+ {[%clk 0:04:40.8]} 13. Ke1 {[%clk 0:03:39.7]} 13... Qd1+
{[%clk 0:04:39.4]} 14. Kf2 {[%clk 0:03:38.3]} 14... Qxc1 {[%clk 0:04:39.3]} 0-1

[Event "Live Chess"]
[Site "Chess.com"]
[Date "2024.06.02"]
[Round "-"]
[White "StoreySniper"]
[Black "dmitro74"]
[Result "0-1"]
[WhiteElo "2509"]
[BlackElo "1722"]
[TimeControl "300"]
[EndTime "17:57:47 PDT"]
[Termination "dmitro74 won by checkmate"]

1. e4 {[%clk 0:04:56.5]} 1... e6 {[%clk 0:04:59]} 2. Nf3 {[%clk 0:04:53]} 2...
d5 {[%clk 0:04:58]} 3. e5 {[%clk 0:04:51.3]} 3... c5 {[%clk 0:04:56.6]} 4. b4
{[%clk 0:04:49.1]} 4... c4 {[%clk 0:04:48.6]} 5. c3 {[%clk 0:04:45.1]} 5... a6
{[%clk 0:04:45.9]} 6. a4 {[%clk 0:04:43.3]} 6... b6 {[%clk 0:04:43.1]} 7. d3
{[%clk 0:04:41.9]} 7... cxd3 {[%clk 0:04:39.3]} 8. Bxd3 {[%clk 0:04:41]} 8...
Bb7 {[%clk 0:04:38.4]} 9. O-O {[%clk 0:04:39.3]} 9... Ne7 {[%clk 0:04:31.7]} 10.
Bg5 {[%clk 0:04:34.2]} 10... Qc7 {[%clk 0:04:26.5]} 11. a5 {[%clk 0:04:26.9]}
11... b5 {[%clk 0:04:22.7]} 12. Re1 {[%clk 0:04:23.8]} 12... Nbc6 {[%clk
0:04:17.8]} 13. Nbd2 {[%clk 0:04:20.6]} 13... Ng6 {[%clk 0:04:13.1]} 14. Qe2
{[%clk 0:04:17.7]} 14... Be7 {[%clk 0:04:09.6]} 15. Bxe7 {[%clk 0:04:16.5]}
15... Ngxe7 {[%clk 0:04:07.3]} 16. Nb3 {[%clk 0:04:15.6]} 16... h6 {[%clk
0:03:42.4]} 17. Nc5 {[%clk 0:04:14]} 17... Nb8 {[%clk 0:03:37.8]} 18. Nd4 {[%clk
0:04:07.5]} 18... Nd7 {[%clk 0:03:34.2]} 19. Ncxe6 {[%clk 0:04:05.3]} 19... fxe6
{[%clk 0:03:24.6]} 20. Nxe6 {[%clk 0:04:04.2]} 20... Qc6 {[%clk 0:03:18.2]} 21.
Qh5+ {[%clk 0:03:58]} 21... g6 {[%clk 0:03:04.2]} 22. Qxg6+ {[%clk 0:03:55.3]}
22... Nxg6 {[%clk 0:03:02.2]} 23. Bxg6+ {[%clk 0:03:53.1]} 23... Ke7 {[%clk
0:02:57.1]} 24. Bf5 {[%clk 0:03:50.8]} 24... d4 {[%clk 0:02:44.9]} 25. Bh3
{[%clk 0:03:44.1]} 25... dxc3 {[%clk 0:02:38.5]} 26. Nd4 {[%clk 0:03:43.3]}
26... Qc4 {[%clk 0:02:25.9]} 27. Nf5+ {[%clk 0:03:41.9]} 27... Kd8 {[%clk
0:02:23.2]} 28. Nd6 {[%clk 0:03:37.9]} 28... Qc6 {[%clk 0:02:17.4]} 29. Rac1
{[%clk 0:03:04.5]} 29... Rg8 {[%clk 0:02:12.5]} 30. Ne4 {[%clk 0:02:58.3]} 30...
Nxe5 {[%clk 0:01:41.4]} 31. Rxc3 {[%clk 0:02:56.1]} 31... Nc4 {[%clk 0:01:26.9]}
32. Rd3+ {[%clk 0:02:42.9]} 32... Kc7 {[%clk 0:01:24.8]} 33. f3 {[%clk
0:02:33.1]} 33... Rad8 {[%clk 0:01:18.6]} 34. Rc3 {[%clk 0:02:28.2]} 34... Kb8
{[%clk 0:01:03.2]} 35. Kh1 {[%clk 0:02:21.9]} 35... Qd5 {[%clk 0:00:54]} 36. Nc5
{[%clk 0:02:15.3]} 36... Qd2 {[%clk 0:00:44]} 37. Rcc1 {[%clk 0:02:14.3]} 37...
Rxg2 {[%clk 0:00:40]} 38. Bxg2 {[%clk 0:02:12.9]} 38... Bxf3 {[%clk 0:00:38.5]}
39. Bxf3 {[%clk 0:02:09.2]} 39... Ne3 {[%clk 0:00:29.7]} 40. Nxa6+ {[%clk
0:01:36]} 40... Ka7 {[%clk 0:00:27]} 41. Nc7 {[%clk 0:01:34.3]} 41... Rb8 {[%clk
0:00:19.6]} 42. Ne6 {[%clk 0:01:14.9]} 42... Re8 {[%clk 0:00:14.1]} 43. Rc7+
{[%clk 0:01:10.7]} 43... Kb8 {[%clk 0:00:13]} 44. Rb7+ {[%clk 0:01:07.8]} 44...
Kc8 {[%clk 0:00:12]} 45. Rc7+ {[%clk 0:01:06.2]} 45... Kb8 {[%clk 0:00:10.5]}
46. a6 {[%clk 0:00:53.9]} 46... Qxe1# {[%clk 0:00:07.3]} 0-1